[Event "8th Gibraltar U16-Junior 2018"]
[Site "Caleta"]
[Date "2018.08.20"]
[Round "6"]
[White "Chouki, Aali"]
[Black "Carroll, Thomas"]
[Result "0-1"]
[ECO "B23"]
[WhiteElo "1413"]
[BlackElo "1965"]
[Annotator "NA RC"]
[PlyCount "40"]
[EventDate "2018.08.17"]
[EventType "swiss"]
[EventCountry "GGB"]
[SourceTitle "playchess.com"]
[Source "ChessBase"]
[SourceQuality "1"]
[TimeControl "6600+10"]

{[%evp 13,40,0,-7,0,-15,-20,-10,-31,-33,-19,6,-47,-71,-95,-14,-111,-32,-31,-31,-82,-72,-216,-155,-137,-162,-462,-452,-814,-361]} 1. e4 {[%emt 0:00:00]} c5 {[%emt 0:00:00]} 2. Nc3 {[%emt 0:00:00]} a6 {[%emt 0:00:00]} 3. f4 {[%emt 0:00:06]} b5 {[%emt 0:00:00]} 4. Nf3 {[%emt 0:00:29]} Bb7 {[%emt 0:00:04] B23: Closed Sicilian: Lines without g3} 5. d3 {[%emt 0:00:09]} e6 {[%emt 0:00:28]} 6. g3 {[%emt 0:00:20]} d5 {[%emt 0:00:41]} (6... Nf6 7. Bg2 d6 8. O-O Qc7 9. h3 Be7 10. a4 b4 11. Ne2 h5 12. b3 Nbd7 13. Bb2 a5 14. Kh1 e5 15. Nd2 {1-0 (36) Amonatov,F (2636)-Korobov,A (2652) Riadh 2017}) 7. exd5 {[%emt 0:00:37]} exd5 {[%emt 0:00:23]} 8. Bg2 {[%emt 0:00:10]} Nf6 {[%emt 0:01:46]} 9. O-O {[%emt 0:00:38] LiveBook: 7 Games} Be7 {[%emt 0:01:41]} 10. a3 {[%emt 0:01:58]} O-O {[%emt 0:00:45]} 11. Ne5 $146 {[%emt 0:01:08]} ({Predecessor:} 11. d4 Nc6 12. Kh1 {½-½ (27) Pye,D (2157)-McDougall,A Eastleigh 2010}) 11... Re8 {[%emt 0:04:47]} 12. Qf3 {[%emt 0:03:12]} Ra7 {[%emt 0:05:24]} 13. Qf2 {[%emt 0:01:26]} Bd6 {[%emt 0:08:08]} (13... d4 $17 14. Bxb7 Rxb7) 14. b4 {[%emt 0:08:19]} (14. d4 $11 {remains equal.}) 14... Qb6 {[%emt 0:09:29]} ({Black should play} 14... d4 $17 15. Bxb7 Rxb7) 15. Bb2 {[%emt 0:03:38]} d4 {[%emt 0:05:50]} 16. Ne2 {[%emt 0:00:45]} (16. Ne4 $11 Bxe4 17. dxe4) 16... Bxg2 {[%emt 0:03:18]} 17. Kxg2 {[%emt 0:04:17]} (17. bxc5 $17 {was necessary.} Bxc5 18. Qxg2) 17... Bxe5 {[%emt 0:02:04]} 18. fxe5 {[%emt 0:00:11] [#]} Ng4 $1 {[%emt 0:00:36]} ({Weaker is} 18... Rxe5 19. bxc5 Qxc5 20. Rae1 $11) 19. bxc5 $2 {[%emt 0:01:18]} (19. Qf4 $17 {is a better chance.} Ne3+ 20. Kg1 Nxf1 21. bxc5 Nxg3 22. Nxg3) 19... Qh6 {[%emt 0:01:53]} 20. Qxd4 {[%emt 0:12:31]} (20. Qg1 $142 Ne3+ 21. Kf2) 20... Qxh2+ $19 {[%emt 0:02:43]} 0-1

[Event "8th Gibraltar U16-Junior 2018"]
[Site "Caleta"]
[Date "2018.08.20"]
[Round "6"]
[White "Rayner, Hugo"]
[Black "Weersing, Sarah"]
[Result "1/2-1/2"]
[ECO "C11"]
[WhiteElo "1391"]
[BlackElo "1608"]
[Annotator "NA RC"]
[PlyCount "47"]
[EventDate "2018.08.17"]
[EventType "swiss"]
[EventCountry "GGB"]
[SourceTitle "playchess.com"]
[Source "ChessBase"]
[SourceQuality "1"]
[TimeControl "6600+10"]

1. e4 {[%emt 0:00:00]} e6 {[%emt 0:00:00]} 2. d4 {[%emt 0:00:00]} d5 {[%emt 0:00:00]} 3. Nc3 {[%emt 0:00:00]} Nf6 {[%emt 0:00:03]} 4. e5 {[%emt 0:00:06]} Nfd7 {[%emt 0:00:06]} 5. f4 {[%emt 0:00:07]} c5 {[%emt 0:00:27]} 6. Nf3 {[%emt 0:00:07]} Qb6 {[%emt 0:01:18]} 7. a3 {[%emt 0:00:21]} Nc6 {[%emt 0:01:08]} 8. Be3 {[%emt 0:00:13]} a6 {[%emt 0:01:39]} 9. Be2 {[%emt 0:01:14]} Be7 {[%emt 0:07:53]} 10. O-O {[%emt 0:03:37]} cxd4 {[%emt 0:02:29]} 11. Nxd4 {[%emt 0:04:37]} Nxd4 {[%emt 0:01:53]} 12. Bxd4 {[%emt 0:00:20]} Bc5 {[%emt 0:01:15]} 13. Bxc5 {[%emt 0:00:26]} Qxc5+ {[%emt 0:00:12]} 14. Kh1 {[%emt 0:00:15]} O-O {[%emt 0:13:00]} 15. Bd3 {[%emt 0:05:34]} Qe7 {[%emt 0:11:44]} 16. Rf3 {[%emt 0:07:42]} g6 {[%emt 0:03:27]} 17. Rg3 {[%emt 0:05:36]} Nc5 {[%emt 0:05:56]} 18. Rc1 {[%emt 0:03:37]} Nxd3 {[%emt 0:04:41]} 19. cxd3 {[%emt 0:00:15]} f6 {[%emt 0:00:54]} 20. d4 {[%emt 0:01:14]} fxe5 {[%emt 0:01:12]} 21. fxe5 {[%emt 0:00:43]} Bd7 {[%emt 0:00:43]} 22. Na4 {[%emt 0:00:02]} Bc8 {[%emt 0:00:02]} 23. Nc3 b5 24. b4 {[%emt 0:00:09]} 1/2-1/2

[Event "8th Gibraltar U16-Junior 2018"]
[Site "Caleta"]
[Date "2018.08.20"]
[Round "6"]
[White "Vyas, Param"]
[Black "Dhanwani, Aryan"]
[Result "1/2-1/2"]
[ECO "D11"]
[WhiteElo "1372"]
[BlackElo "1169"]
[Annotator "NA RC"]
[PlyCount "61"]
[EventDate "2018.08.17"]
[EventType "swiss"]
[EventCountry "GGB"]
[SourceTitle "playchess.com"]
[Source "ChessBase"]
[SourceQuality "1"]
[TimeControl "6600+10"]

1. d4 {[%emt 0:00:00]} c6 {[%emt 0:00:13]} 2. Nf3 {[%emt 0:00:02]} d5 {[%emt 0:00:21]} 3. g3 {[%emt 0:00:15]} Bf5 {[%emt 0:00:44]} 4. Bg2 {[%emt 0:00:14]} Nd7 {[%emt 0:01:34]} 5. O-O {[%emt 0:00:33]} e6 {[%emt 0:00:44]} 6. b3 {[%emt 0:01:18]} Be7 {[%emt 0:03:26]} 7. Bb2 {[%emt 0:00:07]} Ngf6 {[%emt 0:01:40]} 8. Nbd2 {[%emt 0:00:22]} O-O {[%emt 0:00:51]} 9. c4 {[%emt 0:02:51]} b6 {[%emt 0:02:33]} 10. Nh4 {[%emt 0:07:03]} Rc8 {[%emt 0:16:02]} 11. Nxf5 {[%emt 0:02:52]} exf5 {[%emt 0:00:20]} 12. Rc1 {[%emt 0:00:39]} Ne4 {[%emt 0:06:38]} 13. e3 {[%emt 0:18:08]} Ndf6 {[%emt 0:11:21]} 14. Qe2 {[%emt 0:08:07]} Nxd2 {[%emt 0:00:48]} 15. Qxd2 {[%emt 0:00:18]} Ne4 {[%emt 0:00:14]} 16. Bxe4 {[%emt 0:03:03]} dxe4 {[%emt 0:03:38]} 17. Rfd1 {[%emt 0:03:33]} Bf6 {[%emt 0:11:39]} 18. Qe2 {[%emt 0:07:09]} Qe7 {[%emt 0:04:51]} 19. d5 {[%emt 0:04:54]} Bxb2 {[%emt 0:02:02]} 20. Qxb2 {[%emt 0:00:06]} c5 {[%emt 0:03:38]} 21. a3 {[%emt 0:04:14]} Qd6 {[%emt 0:03:39]} 22. b4 {[%emt 0:02:42]} Rb8 {[%emt 0:00:45]} 23. Qc3 {[%emt 0:01:44]} Rb7 {[%emt 0:01:41]} 24. b5 {[%emt 0:02:22]} Re8 {[%emt 0:04:44]} 25. a4 {[%emt 0:02:44]} Rbb8 {[%emt 0:01:44]} 26. Ra1 {[%emt 0:01:38]} a5 {[%emt 0:04:00]} 27. bxa6 {[%emt 0:03:28]} Ra8 {[%emt 0:00:47]} 28. a7 {[%emt 0:07:35]} Rxa7 {[%emt 0:00:30]} 29. Rdb1 {[%emt 0:00:11]} Rea8 {[%emt 0:04:49]} 30. Qb3 {[%emt 0:00:26]} Ra6 {[%emt 0:01:06]} 31. Ra2 {[%emt 0:03:46]} 1/2-1/2

[Event "8th Gibraltar U16-Junior 2018"]
[Site "Caleta"]
[Date "2018.08.20"]
[Round "6"]
[White "Gough, Theo"]
[Black "Atara, Omeet J"]
[Result "0-1"]
[ECO "A84"]
[WhiteElo "1346"]
[BlackElo "1704"]
[Annotator "NA RC"]
[PlyCount "50"]
[EventDate "2018.08.17"]
[EventType "swiss"]
[EventCountry "GGB"]
[SourceTitle "playchess.com"]
[Source "ChessBase"]
[SourceQuality "1"]
[TimeControl "6600+10"]

1. d4 {[%emt 0:00:00]} d5 {[%emt 0:00:00]} 2. c4 {[%emt 0:00:05]} c6 {[%emt 0:00:04]} 3. Nf3 {[%emt 0:00:12]} e6 {[%emt 0:00:06]} 4. e3 {[%emt 0:00:10]} f5 {[%emt 0:00:06]} 5. Nbd2 {[%emt 0:00:25]} Nf6 {[%emt 0:00:10]} 6. b3 {[%emt 0:00:25]} Bd6 {[%emt 0:00:32]} 7. Bb2 {[%emt 0:00:11]} Nbd7 {[%emt 0:02:49]} 8. Bd3 {[%emt 0:01:42]} b6 {[%emt 0:04:27]} 9. O-O {[%emt 0:00:50]} O-O {[%emt 0:02:34]} 10. Ne5 {[%emt 0:04:00]} Bb7 {[%emt 0:02:36]} 11. Rc1 {[%emt 0:01:44]} Rc8 {[%emt 0:04:52]} 12. Ndf3 {[%emt 0:04:29]} Qe7 {[%emt 0:13:08]} 13. Nh4 {[%emt 0:11:35]} Ne4 {[%emt 0:10:04]} 14. Nhf3 {[%emt 0:09:47]} Ndf6 {[%emt 0:04:49]} 15. Qe2 {[%emt 0:02:55]} g5 {[%emt 0:11:57]} 16. Nd2 {[%emt 0:07:02]} Nd7 {[%emt 0:16:27]} 17. cxd5 {[%emt 0:11:08]} exd5 {[%emt 0:06:01]} 18. Nxd7 {[%emt 0:13:27]} Nxd2 {[%emt 0:03:50]} 19. Qxd2 {[%emt 0:05:54]} Qxd7 {[%emt 0:00:06]} 20. Qe2 {[%emt 0:02:44]} Qg7 {[%emt 0:02:19]} 21. Qh5 {[%emt 0:03:12]} Rf6 {[%emt 0:03:58]} 22. g3 {[%emt 0:03:12]} Rcf8 {[%emt 0:01:37]} 23. Kg2 {[%emt 0:01:21]} f4 {[%emt 0:01:41]} 24. Qd1 {[%emt 0:01:04]} f3+ 25. Kg1 Qh6 0-1

[Event "8th Gibraltar U16-Junior 2018"]
[Site "Caleta"]
[Date "2018.08.20"]
[Round "6"]
[White "Shigaeva, Arina"]
[Black "Kirupakaran, Vishnu"]
[Result "0-1"]
[ECO "D02"]
[WhiteElo "1271"]
[BlackElo "1786"]
[Annotator "NA RC"]
[PlyCount "48"]
[EventDate "2018.08.17"]
[EventType "swiss"]
[EventCountry "GGB"]
[SourceTitle "playchess.com"]
[Source "ChessBase"]
[SourceQuality "1"]
[TimeControl "6600+10"]

1. d4 {[%emt 0:00:00]} d5 {[%emt 0:00:00]} 2. Bf4 {[%emt 0:00:03]} Nf6 {[%emt 0:00:00]} 3. Nf3 {[%emt 0:00:18]} c5 {[%emt 0:00:03]} 4. c3 {[%emt 0:00:19]} Nc6 {[%emt 0:00:06]} 5. e3 {[%emt 0:00:39]} Qb6 {[%emt 0:00:20]} 6. Qc2 {[%emt 0:05:26]} Bd7 {[%emt 0:22:07]} 7. h3 {[%emt 0:05:17]} Rc8 {[%emt 0:00:34]} 8. Qb3 {[%emt 0:07:50]} c4 {[%emt 0:08:28]} 9. Qxb6 {[%emt 0:00:31]} axb6 {[%emt 0:00:03]} 10. Nbd2 {[%emt 0:01:14]} b5 {[%emt 0:02:41]} 11. Be2 {[%emt 0:01:25]} b4 {[%emt 0:01:50]} 12. O-O {[%emt 0:01:18]} b5 {[%emt 0:02:26]} 13. Ne5 {[%emt 0:04:44]} e6 {[%emt 0:07:29]} 14. Ndf3 {[%emt 0:03:27]} Ne4 {[%emt 0:01:41]} 15. Rfc1 {[%emt 0:03:06]} bxc3 {[%emt 0:17:43]} 16. bxc3 {[%emt 0:00:44]} Ba3 {[%emt 0:00:08]} 17. Rc2 {[%emt 0:02:09]} b4 {[%emt 0:01:36]} 18. Nd2 {[%emt 0:10:01]} Nxc3 {[%emt 0:02:44]} 19. Bf3 {[%emt 0:08:48]} Nxe5 {[%emt 0:01:01]} 20. Bxe5 {[%emt 0:01:42]} Ba4 {[%emt 0:00:25]} 21. Rcc1 {[%emt 0:01:06]} Bxc1 {[%emt 0:02:13]} 22. Rxc1 {[%emt 0:00:14]} Nxa2 {[%emt 0:00:41]} 23. Ra1 {[%emt 0:00:51]} c3 {[%emt 0:03:39]} 24. Rxa2 {[%emt 0:01:34]} c2 {[%emt 0:00:00]} 0-1